[Event "*** MasterClass Titled Tuesday Blitz"]
[Site "Chess.com"]
[Date "2017.12.12"]
[Round "5"]
[White "toad"]
[Black "goldenspine"]
[Result "0-1"]
[WhiteElo "2187"]
[BlackElo "2288"]
[TimeControl "180+2"]
[EndTime "14:06:00 PST"]
[Termination "goldenspine won by resignation"]

1. d4 {[%clk 0:03:01.9]} 1... Nf6 {[%clk 0:03:00.7]} 2. c4 {[%clk 0:03:03.3]}
2... g6 {[%clk 0:03:02.3]} 3. g3 {[%clk 0:03:04.5]} 3... Bg7 {[%clk 0:03:03.1]}
4. Bg2 {[%clk 0:03:05.5]} 4... d5 {[%clk 0:03:01]} 5. cxd5 {[%clk 0:03:05.4]}
5... Nxd5 {[%clk 0:03:02.9]} 6. Nf3 {[%clk 0:03:06.5]} 6... O-O {[%clk
0:03:02.5]} 7. O-O {[%clk 0:03:07.3]} 7... c5 {[%clk 0:03:00.6]} 8. dxc5 {[%clk
0:03:06.8]} 8... Nb4 {[%clk 0:02:55.1]} 9. Nc3 {[%clk 0:02:57.5]} 9... Qa5
{[%clk 0:02:16.8]} 10. Be3 {[%clk 0:02:46.1]} 10... Rd8 {[%clk 0:02:11.3]} 11.
Qb3 {[%clk 0:02:44.4]} 11... Be6 {[%clk 0:02:09.3]} 12. Qa4 {[%clk 0:02:41.2]}
12... Qxa4 {[%clk 0:02:09.3]} 13. Nxa4 {[%clk 0:02:42.9]} 13... Nc2 {[%clk
0:02:10.4]} 14. Rad1 {[%clk 0:02:38.1]} 14... Na6 {[%clk 0:02:05.4]} 15. Bg5
{[%clk 0:02:22.5]} 15... f6 {[%clk 0:02:03.4]} 16. Bc1 {[%clk 0:02:20.4]} 16...
Bxa2 {[%clk 0:01:58.9]} 17. Nd2 {[%clk 0:02:02.5]} 17... Rab8 {[%clk 0:01:49.8]}
18. b3 {[%clk 0:01:57.3]} 18... Nd4 {[%clk 0:01:50]} 19. Ba3 {[%clk 0:01:25.4]}
19... e6 {[%clk 0:01:21.4]} 20. e3 {[%clk 0:01:17.3]} 20... Nxb3 {[%clk
0:01:21.4]} 21. Ne4 {[%clk 0:01:17.7]} 21... Na5 {[%clk 0:01:03.7]} 22. Nac3
{[%clk 0:00:51]} 22... Bb3 {[%clk 0:00:57]} 23. Rb1 {[%clk 0:00:50.5]} 23... Bc2
{[%clk 0:00:54.3]} 24. Rb2 {[%clk 0:00:45.2]} 24... Bd3 {[%clk 0:00:54.6]} 25.
Rd1 {[%clk 0:00:38.6]} 25... Nc4 {[%clk 0:00:52.7]} 26. Ra2 {[%clk 0:00:37.4]}
26... f5 {[%clk 0:00:52.5]} 27. Nd6 {[%clk 0:00:36.1]} 27... Nxa3 {[%clk
0:00:42.8]} 28. Rxa3 {[%clk 0:00:30.8]} 28... Nxc5 {[%clk 0:00:43.2]} 29. Ndb5
{[%clk 0:00:26.9]} 29... a6 {[%clk 0:00:42.3]} 30. Nd4 {[%clk 0:00:18]} 30... b5
{[%clk 0:00:41.1]} 31. Nce2 {[%clk 0:00:14.7]} 31... Bc4 {[%clk 0:00:39.4]} 32.
Rb1 {[%clk 0:00:04.1]} 32... Rd6 {[%clk 0:00:26]} 33. Nc6 {[%clk 0:00:04.3]}
33... Rb6 {[%clk 0:00:26.5]} 34. Na5 {[%clk 0:00:02.3]} 34... Bxe2 {[%clk
0:00:26.7]} 0-1

[Event "*** MasterClass Titled Tuesday Blitz"]
[Site "Chess.com"]
[Date "2017.12.12"]
[Round "5"]
[White "walkingcreep"]
[Black "DrVelja"]
[Result "0-1"]
[WhiteElo "2395"]
[BlackElo "2542"]
[TimeControl "180+2"]
[EndTime "14:06:02 PST"]
[Termination "DrVelja won by checkmate"]

1. Nf3 {[%clk 0:03:01.9]} 1... Nf6 {[%clk 0:03:00.9]} 2. g3 {[%clk 0:03:03.8]}
2... g6 {[%clk 0:03:02.4]} 3. Bg2 {[%clk 0:03:05.7]} 3... Bg7 {[%clk 0:03:04.2]}
4. O-O {[%clk 0:03:06.8]} 4... O-O {[%clk 0:03:06.1]} 5. d3 {[%clk 0:03:08.3]}
5... d6 {[%clk 0:03:07.8]} 6. e4 {[%clk 0:03:08]} 6... c5 {[%clk 0:03:08.6]} 7.
Nc3 {[%clk 0:03:08.7]} 7... Nc6 {[%clk 0:03:08.8]} 8. Bf4 {[%clk 0:03:07.5]}
8... Nd7 {[%clk 0:03:08.5]} 9. Qd2 {[%clk 0:03:08.3]} 9... Rb8 {[%clk
0:03:05.6]} 10. a4 {[%clk 0:03:08.8]} 10... e5 {[%clk 0:02:42]} 11. Bh6 {[%clk
0:03:08.5]} 11... f5 {[%clk 0:02:41.1]} 12. Bxg7 {[%clk 0:03:06.6]} 12... Kxg7
{[%clk 0:02:42.2]} 13. exf5 {[%clk 0:03:07.6]} 13... gxf5 {[%clk 0:02:42.5]} 14.
Nh4 {[%clk 0:02:55]} 14... f4 {[%clk 0:02:28]} 15. Rae1 {[%clk 0:02:47.4]} 15...
Nf6 {[%clk 0:02:21]} 16. Ne4 {[%clk 0:02:47.6]} 16... Nxe4 {[%clk 0:02:15.8]}
17. dxe4 {[%clk 0:02:46.2]} 17... Kh8 {[%clk 0:02:07.5]} 18. c3 {[%clk
0:02:44.9]} 18... Qe7 {[%clk 0:01:56.7]} 19. Rd1 {[%clk 0:02:41.9]} 19... Rf6
{[%clk 0:01:57.5]} 20. Nf5 {[%clk 0:02:38.7]} 20... Bxf5 {[%clk 0:01:53.7]} 21.
exf5 {[%clk 0:02:40.6]} 21... Rd8 {[%clk 0:01:54]} 22. Be4 {[%clk 0:02:36.1]}
22... Qg7 {[%clk 0:01:52.5]} 23. Qe2 {[%clk 0:02:29.8]} 23... Ne7 {[%clk
0:01:50.3]} 24. Rd2 {[%clk 0:01:54.5]} 24... Nxf5 {[%clk 0:01:25.2]} 25. Rfd1
{[%clk 0:01:55.1]} 25... Ne7 {[%clk 0:01:24.5]} 26. Bxb7 {[%clk 0:01:51.9]}
26... Qh6 {[%clk 0:01:09.4]} 27. Be4 {[%clk 0:01:49.3]} 27... Rdf8 {[%clk
0:01:00]} 28. f3 {[%clk 0:01:18.7]} 28... fxg3 {[%clk 0:00:55.1]} 29. hxg3
{[%clk 0:01:19.7]} 29... Qg5 {[%clk 0:00:52.2]} 30. Kg2 {[%clk 0:01:15.3]} 30...
d5 {[%clk 0:00:47.6]} 31. Bxd5 {[%clk 0:01:11.2]} 31... Nf5 {[%clk 0:00:49.1]}
32. Qe4 {[%clk 0:00:21]} 32... Qxg3+ {[%clk 0:00:35.1]} 33. Kf1 {[%clk
0:00:22.2]} 33... Nh4 {[%clk 0:00:36.7]} 34. Ke2 {[%clk 0:00:11.9]} 34... Nxf3
{[%clk 0:00:29.9]} 35. Rh1 {[%clk 0:00:12.5]} 35... Qg2+ {[%clk 0:00:30.1]} 36.
Ke3 {[%clk 0:00:13.7]} 36... Qxd2# {[%clk 0:00:31.4]} 0-1

[Event "*** MasterClass Titled Tuesday Blitz"]
[Site "Chess.com"]
[Date "2017.12.12"]
[Round "5"]
[White "gmcorrales"]
[Black "FMJoseHerrera"]
[Result "1-0"]
[WhiteElo "2615"]
[BlackElo "2431"]
[TimeControl "180+2"]
[EndTime "14:06:06 PST"]
[Termination "gmcorrales won by checkmate"]

1. d4 {[%clk 0:03:01.9]} 1... Nf6 {[%clk 0:03:00.5]} 2. c4 {[%clk 0:02:58.1]}
2... c5 {[%clk 0:03:00.8]} 3. d5 {[%clk 0:02:58.2]} 3... b5 {[%clk 0:03:01]} 4.
cxb5 {[%clk 0:02:59]} 4... a6 {[%clk 0:03:02.2]} 5. bxa6 {[%clk 0:02:59.5]} 5...
g6 {[%clk 0:03:03.3]} 6. Nc3 {[%clk 0:02:58]} 6... Bg7 {[%clk 0:03:04.7]} 7. Nf3
{[%clk 0:02:58.7]} 7... O-O {[%clk 0:03:05.9]} 8. g3 {[%clk 0:02:36.3]} 8... d6
{[%clk 0:02:50.2]} 9. Bg2 {[%clk 0:02:37]} 9... Bxa6 {[%clk 0:02:50]} 10. O-O
{[%clk 0:02:37.7]} 10... Nbd7 {[%clk 0:02:51.3]} 11. Rb1 {[%clk 0:02:33.6]}
11... Qc7 {[%clk 0:02:39.1]} 12. b3 {[%clk 0:02:34.6]} 12... Rfb8 {[%clk
0:02:33.7]} 13. Nd2 {[%clk 0:02:34.7]} 13... Ne5 {[%clk 0:02:27.1]} 14. Re1
{[%clk 0:02:35.6]} 14... h5 {[%clk 0:02:27.4]} 15. Bb2 {[%clk 0:02:36]} 15... h4
{[%clk 0:02:27.8]} 16. Nde4 {[%clk 0:02:35.6]} 16... hxg3 {[%clk 0:02:28]} 17.
hxg3 {[%clk 0:02:36.2]} 17... Nfg4 {[%clk 0:02:27.6]} 18. Qd2 {[%clk 0:02:13.5]}
18... Qd7 {[%clk 0:02:11.4]} 19. f4 {[%clk 0:02:12.3]} 19... Bh6 {[%clk
0:01:36.2]} 20. e3 {[%clk 0:02:10.5]} 20... Nd3 {[%clk 0:01:34.6]} 21. Red1
{[%clk 0:02:09.7]} 21... Nxb2 {[%clk 0:01:32.2]} 22. Rxb2 {[%clk 0:02:11.6]}
22... Bg7 {[%clk 0:01:33.3]} 23. Bh3 {[%clk 0:02:08.7]} 23... f5 {[%clk
0:01:19.8]} 24. Bxg4 {[%clk 0:02:07.9]} 24... fxg4 {[%clk 0:01:21.7]} 25. Nf2
{[%clk 0:02:08.8]} 25... c4 {[%clk 0:01:17.3]} 26. b4 {[%clk 0:02:09.8]} 26...
Bb7 {[%clk 0:01:14.6]} 27. e4 {[%clk 0:02:10.5]} 27... Ra3 {[%clk 0:01:14.9]}
28. Rc1 {[%clk 0:02:08.6]} 28... Rba8 {[%clk 0:01:13.4]} 29. b5 {[%clk
0:02:02.8]} 29... Qc7 {[%clk 0:01:06.1]} 30. Kg2 {[%clk 0:01:45.5]} 30... Qc5
{[%clk 0:01:05.8]} 31. b6 {[%clk 0:01:46.5]} 31... Qd4 {[%clk 0:00:59.4]} 32.
Qxd4 {[%clk 0:01:30.7]} 32... Bxd4 {[%clk 0:01:01.3]} 33. Rbc2 {[%clk 0:01:32]}
33... Bxb6 {[%clk 0:00:49.3]} 34. Nxg4 {[%clk 0:01:32.9]} 34... Bd4 {[%clk
0:00:49.3]} 35. Nb5 {[%clk 0:01:28.8]} 35... Rd3 {[%clk 0:00:37.1]} 36. Rxc4
{[%clk 0:01:17.9]} 36... Rxa2+ {[%clk 0:00:36.8]} 37. Kh3 {[%clk 0:01:19.1]}
37... Bc5 {[%clk 0:00:18.2]} 38. R4c2 {[%clk 0:00:59.1]} 38... Ra5 {[%clk
0:00:18.2]} 39. Rb1 {[%clk 0:00:55.9]} 39... Ba6 {[%clk 0:00:19.3]} 40. Nc7
{[%clk 0:00:56]} 40... Bc8 {[%clk 0:00:20.4]} 41. Rb8 {[%clk 0:00:55]} 41...
Raa3 {[%clk 0:00:21.5]} 42. Rxc8+ {[%clk 0:00:55.7]} 42... Kf7 {[%clk
0:00:23.1]} 43. Rg2 {[%clk 0:00:53.9]} 43... Ra1 {[%clk 0:00:24.4]} 44. Ne6
{[%clk 0:00:53.3]} 44... Rh1+ {[%clk 0:00:25.1]} 45. Rh2 {[%clk 0:00:53.9]}
45... Rg1 {[%clk 0:00:26.6]} 46. Rf8# {[%clk 0:00:53.8]} 1-0

[Event "*** MasterClass Titled Tuesday Blitz"]
[Site "Chess.com"]
[Date "2017.12.12"]
[Round "5"]
[White "Konavets"]
[Black "GMBenjaminBok"]
[Result "0-1"]
[WhiteElo "2760"]
[BlackElo "2619"]
[TimeControl "180+2"]
[EndTime "14:06:07 PST"]
[Termination "GMBenjaminBok won by resignation"]

1. e4 {[%clk 0:03:01.9]} 1... e5 {[%clk 0:03:00.1]} 2. Nf3 {[%clk 0:03:02.7]}
2... Nc6 {[%clk 0:03:01.6]} 3. Bc4 {[%clk 0:03:03]} 3... Bc5 {[%clk 0:03:01.9]}
4. O-O {[%clk 0:03:02.4]} 4... Nf6 {[%clk 0:03:03.4]} 5. Re1 {[%clk 0:03:03.2]}
5... O-O {[%clk 0:03:02.8]} 6. a4 {[%clk 0:03:03.7]} 6... d6 {[%clk 0:02:57.6]}
7. c3 {[%clk 0:03:04.7]} 7... a5 {[%clk 0:02:52.3]} 8. d3 {[%clk 0:02:58.5]}
8... Be6 {[%clk 0:02:48.2]} 9. Nbd2 {[%clk 0:02:45.3]} 9... h6 {[%clk
0:02:33.8]} 10. h3 {[%clk 0:02:45.9]} 10... Ba7 {[%clk 0:02:27.8]} 11. Qb3
{[%clk 0:02:46.6]} 11... Rb8 {[%clk 0:02:27.3]} 12. Bxe6 {[%clk 0:02:47.1]}
12... fxe6 {[%clk 0:02:27.7]} 13. Qxe6+ {[%clk 0:02:49]} 13... Kh7 {[%clk
0:02:28.3]} 14. Nc4 {[%clk 0:02:50.3]} 14... Re8 {[%clk 0:02:19.1]} 15. Qf5+
{[%clk 0:02:50.1]} 15... g6 {[%clk 0:02:19.2]} 16. Ng5+ {[%clk 0:02:51.8]} 16...
hxg5 {[%clk 0:02:19.5]} 17. Qxg5 {[%clk 0:02:53.7]} 17... Rf8 {[%clk 0:02:11.4]}
18. Qh6+ {[%clk 0:02:54.2]} 18... Kg8 {[%clk 0:02:10.1]} 19. Qxg6+ {[%clk
0:02:56.1]} 19... Kh8 {[%clk 0:02:10.3]} 20. Be3 {[%clk 0:02:55.6]} 20... Bxe3
{[%clk 0:01:52.4]} 21. Nxe3 {[%clk 0:02:42.5]} 21... Nh7 {[%clk 0:01:52.6]} 22.
g3 {[%clk 0:02:41]} 22... Ne7 {[%clk 0:01:48.7]} 23. Qh5 {[%clk 0:02:40.9]}
23... Qd7 {[%clk 0:01:48.4]} 24. h4 {[%clk 0:02:40]} 24... Rg8 {[%clk
0:01:44.6]} 25. Rad1 {[%clk 0:02:37.5]} 25... Rbf8 {[%clk 0:01:44.3]} 26. d4
{[%clk 0:02:36.8]} 26... exd4 {[%clk 0:01:40.5]} 27. Rxd4 {[%clk 0:02:37.4]}
27... Qh3 {[%clk 0:01:35.9]} 28. e5 {[%clk 0:01:40.6]} 28... Rxg3+ {[%clk
0:00:58.2]} 29. fxg3 {[%clk 0:01:38.7]} 29... Qxg3+ {[%clk 0:00:59.6]} 30. Ng2
{[%clk 0:01:38.8]} 30... Rf2 {[%clk 0:01:00.9]} 31. Qe8+ {[%clk 0:00:16.7]}
31... Ng8 {[%clk 0:00:59.5]} 32. Qxg8+ {[%clk 0:00:17.9]} 32... Kxg8 {[%clk
0:00:58.7]} 33. Rg4+ {[%clk 0:00:19.2]} 33... Qxg4 {[%clk 0:00:59.6]} 34. Kxf2
{[%clk 0:00:21.1]} 34... dxe5 {[%clk 0:00:58.8]} 35. Rxe5 {[%clk 0:00:20]} 35...
Qxa4 {[%clk 0:00:59]} 36. Ne3 {[%clk 0:00:21.4]} 36... Qxh4+ {[%clk 0:00:58.4]}
37. Kg2 {[%clk 0:00:16.1]} 37... Qf4 {[%clk 0:00:56.5]} 38. Re8+ {[%clk
0:00:14.9]} 38... Kf7 {[%clk 0:00:56.6]} 39. Re7+ {[%clk 0:00:16.4]} 39... Kg8
{[%clk 0:00:50.4]} 40. Re8+ {[%clk 0:00:12.8]} 40... Nf8 {[%clk 0:00:50.8]} 41.
c4 {[%clk 0:00:14.1]} 41... c6 {[%clk 0:00:47.9]} 42. b3 {[%clk 0:00:13]} 42...
Kf7 {[%clk 0:00:47.5]} 0-1

[Event "*** MasterClass Titled Tuesday Blitz"]
[Site "Chess.com"]
[Date "2017.12.12"]
[Round "5"]
[White "Fighterman91"]
[Black "Tash_Boy"]
[Result "1-0"]
[WhiteElo "2501"]
[BlackElo "2455"]
[TimeControl "180+2"]
[EndTime "14:06:08 PST"]
[Termination "Fighterman91 won by checkmate"]

1. e4 {[%clk 0:03:01.9]} 1... c5 {[%clk 0:02:57.3]} 2. Nf3 {[%clk 0:03:03.4]}
2... d6 {[%clk 0:02:57.7]} 3. d4 {[%clk 0:03:04.5]} 3... Nf6 {[%clk 0:02:59]} 4.
Nc3 {[%clk 0:03:05.4]} 4... cxd4 {[%clk 0:03:00.3]} 5. Nxd4 {[%clk 0:03:07.3]}
5... e5 {[%clk 0:03:02.2]} 6. Bb5+ {[%clk 0:03:07]} 6... Nbd7 {[%clk 0:03:02.1]}
7. Nf5 {[%clk 0:03:07.5]} 7... a6 {[%clk 0:03:03.5]} 8. Ba4 {[%clk 0:03:08.3]}
8... b5 {[%clk 0:03:03.6]} 9. Bb3 {[%clk 0:03:09.1]} 9... Nb6 {[%clk 0:03:05.1]}
10. Bg5 {[%clk 0:03:03.2]} 10... Bxf5 {[%clk 0:03:05.6]} 11. exf5 {[%clk
0:03:05.1]} 11... Be7 {[%clk 0:03:06.7]} 12. O-O {[%clk 0:02:43.2]} 12... O-O
{[%clk 0:03:05.7]} 13. Bxf6 {[%clk 0:02:21.9]} 13... Bxf6 {[%clk 0:03:05.7]} 14.
a4 {[%clk 0:02:23.8]} 14... b4 {[%clk 0:03:00.3]} 15. Nd5 {[%clk 0:02:25.2]}
15... Re8 {[%clk 0:02:57.4]} 16. a5 {[%clk 0:02:14.4]} 16... Nxd5 {[%clk
0:02:52.5]} 17. Qxd5 {[%clk 0:02:15.4]} 17... Ra7 {[%clk 0:02:52.4]} 18. Rfe1
{[%clk 0:02:03.8]} 18... h6 {[%clk 0:02:33.1]} 19. Re4 {[%clk 0:01:53.9]} 19...
Rc7 {[%clk 0:02:25.8]} 20. Rxb4 {[%clk 0:01:50]} 20... Qc8 {[%clk 0:02:15.1]}
21. Rc4 {[%clk 0:01:43.2]} 21... Rxc4 {[%clk 0:02:13.7]} 22. Bxc4 {[%clk
0:01:45.1]} 22... Re7 {[%clk 0:02:11]} 23. c3 {[%clk 0:01:42.9]} 23... e4 {[%clk
0:02:09.9]} 24. Re1 {[%clk 0:01:41.5]} 24... Re5 {[%clk 0:02:10.4]} 25. Qxf7+
{[%clk 0:01:39.9]} 25... Kh8 {[%clk 0:02:10.4]} 26. Be6 {[%clk 0:01:37]} 26...
Qb8 {[%clk 0:02:10.7]} 27. g3 {[%clk 0:01:33.2]} 27... Qa8 {[%clk 0:01:53.5]}
28. b4 {[%clk 0:01:31.9]} 28... Kh7 {[%clk 0:01:50.2]} 29. Qg6+ {[%clk
0:01:31.9]} 29... Kh8 {[%clk 0:01:51.1]} 30. Qf7 {[%clk 0:01:32.7]} 30... Kh7
{[%clk 0:01:51.8]} 31. c4 {[%clk 0:01:23.5]} 31... Qd8 {[%clk 0:01:45.9]} 32.
Bd5 {[%clk 0:01:07.9]} 32... Qb8 {[%clk 0:01:05.2]} 33. b5 {[%clk 0:01:06.6]}
33... axb5 {[%clk 0:01:00.2]} 34. cxb5 {[%clk 0:00:59.4]} 34... Kh8 {[%clk
0:00:57.6]} 35. b6 {[%clk 0:00:48.2]} 35... Re7 {[%clk 0:00:56.4]} 36. Qg6
{[%clk 0:00:43.7]} 36... Bc3 {[%clk 0:00:48]} 37. f6 {[%clk 0:00:39.2]} 37...
Bxf6 {[%clk 0:00:46]} 38. Rxe4 {[%clk 0:00:40]} 38... Rxe4 {[%clk 0:00:36.9]}
39. Bxe4 {[%clk 0:00:41.9]} 39... Kg8 {[%clk 0:00:38.3]} 40. Bd5+ {[%clk
0:00:41.9]} 40... Kf8 {[%clk 0:00:39.5]} 41. Qf7# {[%clk 0:00:42.4]} 1-0

[Event "*** MasterClass Titled Tuesday Blitz"]
[Site "Chess.com"]
[Date "2017.12.12"]
[Round "5"]
[White "dolynachess"]
[Black "Quiet_Desperation"]
[Result "1/2-1/2"]
[WhiteElo "2285"]
[BlackElo "2368"]
[TimeControl "180+2"]
[EndTime "14:06:15 PST"]
[Termination "Game drawn by agreement"]

1. d4 {[%clk 0:03:01.9]} 1... Nf6 {[%clk 0:03:00.7]} 2. c4 {[%clk 0:03:02.8]}
2... e6 {[%clk 0:03:00.4]} 3. Nc3 {[%clk 0:02:59.4]} 3... Bb4 {[%clk 0:03:01.2]}
4. e3 {[%clk 0:03:00.6]} 4... b6 {[%clk 0:03:02.4]} 5. Ne2 {[%clk 0:03:01.5]}
5... Ba6 {[%clk 0:03:03.4]} 6. a3 {[%clk 0:02:59.1]} 6... Bxc3+ {[%clk
0:03:03.9]} 7. Nxc3 {[%clk 0:02:58.3]} 7... d5 {[%clk 0:02:57.8]} 8. b3 {[%clk
0:02:38.1]} 8... O-O {[%clk 0:02:54.1]} 9. Bb2 {[%clk 0:02:34.7]} 9... dxc4
{[%clk 0:02:51.1]} 10. bxc4 {[%clk 0:02:28.7]} 10... Nc6 {[%clk 0:02:49]} 11.
Rc1 {[%clk 0:02:10.5]} 11... Na5 {[%clk 0:02:49.7]} 12. Nb1 {[%clk 0:02:02.6]}
12... Rc8 {[%clk 0:02:47]} 13. Bd3 {[%clk 0:02:00.1]} 13... c5 {[%clk
0:02:46.8]} 14. O-O {[%clk 0:02:00.3]} 14... cxd4 {[%clk 0:02:44.1]} 15. Bxd4
{[%clk 0:01:55.5]} 15... Bxc4 {[%clk 0:02:39]} 16. Bxc4 {[%clk 0:01:47.4]} 16...
Nxc4 {[%clk 0:02:36.5]} 17. Qa4 {[%clk 0:01:46.6]} 17... Na5 {[%clk 0:02:27.1]}
18. Rxc8 {[%clk 0:01:14.3]} 18... Qxc8 {[%clk 0:02:29]} 19. Bxf6 {[%clk
0:01:15.1]} 19... gxf6 {[%clk 0:02:27.1]} 20. Qh4 {[%clk 0:01:02.6]} 20... Qd8
{[%clk 0:02:04.1]} 21. Qg4+ {[%clk 0:00:59.6]} 21... Kh8 {[%clk 0:02:05.1]} 22.
Rd1 {[%clk 0:01:01.2]} 22... Qe7 {[%clk 0:02:05.8]} 23. Qf4 {[%clk 0:00:44.4]}
23... Rd8 {[%clk 0:02:02.4]} 24. Rc1 {[%clk 0:00:26]} 24... e5 {[%clk
0:01:41.6]} 25. Qe4 {[%clk 0:00:18.2]} 25... Qd6 {[%clk 0:01:35.5]} 26. g3
{[%clk 0:00:18.1]} 26... Qd5 {[%clk 0:01:28.9]} 27. Qf5 {[%clk 0:00:18.5]} 27...
Qe6 {[%clk 0:01:29.9]} 28. Qh5 {[%clk 0:00:19.6]} 28... Nc4 {[%clk 0:01:25.5]}
29. a4 {[%clk 0:00:19.1]} 29... Nd6 {[%clk 0:00:42.8]} 30. Nc3 {[%clk 0:00:19]}
30... Rc8 {[%clk 0:00:36.6]} 31. Qh6 {[%clk 0:00:17.2]} 31... Nf5 {[%clk
0:00:27.5]} 32. Qh5 {[%clk 0:00:13.1]} 32... Ng7 {[%clk 0:00:26.1]} 33. Qd1
{[%clk 0:00:12.5]} 33... f5 {[%clk 0:00:22]} 34. Nb5 {[%clk 0:00:12.5]} 34...
Rxc1 {[%clk 0:00:23]} 35. Qxc1 {[%clk 0:00:14.4]} 35... h6 {[%clk 0:00:23.7]}
36. Nxa7 {[%clk 0:00:14.5]} 36... Qb3 {[%clk 0:00:20.4]} 1/2-1/2

[Event "*** MasterClass Titled Tuesday Blitz"]
[Site "Chess.com"]
[Date "2017.12.12"]
[Round "5"]
[White "Taron_Shagbazyan"]
[Black "Vrolijk"]
[Result "1-0"]
[WhiteElo "2514"]
[BlackElo "2445"]
[TimeControl "180+2"]
[EndTime "14:06:33 PST"]
[Termination "Taron_Shagbazyan won by resignation"]

1. d4 {[%clk 0:03:01.1]} 1... Nf6 {[%clk 0:03:00.4]} 2. c4 {[%clk 0:02:59.7]}
2... g6 {[%clk 0:03:01.5]} 3. Nc3 {[%clk 0:03:00.9]} 3... Bg7 {[%clk 0:03:03]}
4. g3 {[%clk 0:03:02.3]} 4... O-O {[%clk 0:03:03]} 5. Bg2 {[%clk 0:03:03.7]}
5... d6 {[%clk 0:03:04.4]} 6. e3 {[%clk 0:03:05]} 6... c5 {[%clk 0:03:04.6]} 7.
Nge2 {[%clk 0:03:05.4]} 7... Nc6 {[%clk 0:03:06.1]} 8. O-O {[%clk 0:03:05.8]}
8... Bf5 {[%clk 0:03:01.5]} 9. d5 {[%clk 0:02:57.1]} 9... Na5 {[%clk 0:03:01]}
10. e4 {[%clk 0:02:56.8]} 10... Bd7 {[%clk 0:02:59.9]} 11. Qd3 {[%clk
0:02:54.7]} 11... a6 {[%clk 0:02:59.7]} 12. f4 {[%clk 0:02:49.7]} 12... b5
{[%clk 0:03:00.2]} 13. h3 {[%clk 0:02:49.4]} 13... Nxc4 {[%clk 0:03:00]} 14. b3
{[%clk 0:02:35.3]} 14... Na5 {[%clk 0:03:00.9]} 15. e5 {[%clk 0:02:34.8]} 15...
Ne8 {[%clk 0:02:45.4]} 16. Qe3 {[%clk 0:02:33.7]} 16... Rb8 {[%clk 0:02:39.2]}
17. Bb2 {[%clk 0:02:27.1]} 17... c4 {[%clk 0:02:39]} 18. b4 {[%clk 0:02:25.3]}
18... Nb7 {[%clk 0:02:39.7]} 19. Kh2 {[%clk 0:02:13.5]} 19... Qc7 {[%clk
0:02:38.6]} 20. e6 {[%clk 0:02:10.7]} 20... fxe6 {[%clk 0:02:37.9]} 21. dxe6
{[%clk 0:02:10.7]} 21... Bc6 {[%clk 0:02:39.8]} 22. Rad1 {[%clk 0:01:30.4]}
22... Bxg2 {[%clk 0:02:34.4]} 23. Kxg2 {[%clk 0:01:25.9]} 23... Qc6+ {[%clk
0:02:34.8]} 24. Kh2 {[%clk 0:01:26.2]} 24... Nc7 {[%clk 0:02:34.9]} 25. Nd4
{[%clk 0:01:19.7]} 25... Qb6 {[%clk 0:01:06.3]} 26. Rfe1 {[%clk 0:01:16.8]}
26... Nd8 {[%clk 0:01:07.3]} 27. Qe4 {[%clk 0:01:15.1]} 27... Qb7 {[%clk
0:01:05.6]} 28. Qe3 {[%clk 0:01:12.5]} 28... Nc6 {[%clk 0:01:06.4]} 29. Nc2
{[%clk 0:01:02.7]} 29... Qb6 {[%clk 0:01:05.4]} 30. Qe4 {[%clk 0:01:01.5]} 30...
Rbd8 {[%clk 0:01:05.4]} 31. Nd5 {[%clk 0:00:56.9]} 31... Qf2+ {[%clk 0:01:00.8]}
32. Kh1 {[%clk 0:00:48.3]} 32... Nxd5 {[%clk 0:00:52.2]} 33. Bxg7 {[%clk
0:00:47.8]} 33... Kxg7 {[%clk 0:00:48.7]} 34. Qxd5 {[%clk 0:00:47.1]} 34... Qxg3
{[%clk 0:00:36.5]} 35. Re3 {[%clk 0:00:44.7]} 35... Qf2 {[%clk 0:00:33.1]} 36.
Rd2 {[%clk 0:00:44.6]} 36... Qf1+ {[%clk 0:00:33.3]} 37. Kh2 {[%clk 0:00:45.9]}
37... Rxf4 {[%clk 0:00:34.2]} 38. Qxc6 {[%clk 0:00:45]} 38... Rdf8 {[%clk
0:00:35.2]} 39. Ree2 {[%clk 0:00:37]} 39... Rf3 {[%clk 0:00:35.4]} 40. Rg2
{[%clk 0:00:36.9]} 40... c3 {[%clk 0:00:31.7]} 41. Rde2 {[%clk 0:00:36.6]} 41...
Rd3 {[%clk 0:00:31.3]} 42. Ne3 {[%clk 0:00:32]} 42... Qf4+ {[%clk 0:00:30.2]}
43. Rg3 {[%clk 0:00:32]} 43... Rd2 {[%clk 0:00:31.7]} 44. Qxc3+ {[%clk 0:00:32]}
44... Rd4 {[%clk 0:00:27.9]} 45. Nc2 {[%clk 0:00:33.1]} 1-0